Workbook

Sheet Jaanuari
A1: JAANUAR
A2: Veebimüük | C2: Oksjoni ID | D2: Üksuse kirjeldus | E2: Ostuhind | F2: Müügihind | G2: Veebitasud | H2: PayPali tasud | I2: Krediitkaardi tasud | J2: Saatmistasud | K2: Saatekulud | L2: Müük: kasum/kahjum | M2: Saatmine: kasum/kahjum | N2: Kasum/kahjum kokku
A3: Aasta | C3: TS001 | D3: Üksus 1 | E3: 5 | F3: 4 | G3: 2 | H3: 1.5 | I3: 0 | J3: 4 | K3: 2 | L3: =IFERROR(JaanuariMüük[Müügihind]-(JaanuariMüük[Ostuhind]+JaanuariMüük[Veebitasud]+JaanuariMüük[PayPali tasud]+JaanuariMüük[Krediitkaardi tasud]),"") -> -4.5 | M3: =JaanuariMüük[Saatmistasud]-JaanuariMüük[Saatekulud] -> 2 | N3: =JaanuariMüük[Müük: kasum/kahjum]+JaanuariMüük[Saatmine: kasum/kahjum] -> -2.5
A4: 2012 | C4: TP004 | D4: Üksus 2 | E4: 2 | F4: 30 | G4: 0.5 | H4: 0.5 | J4: 4 | K4: 5.5 | L4: =IFERROR(JaanuariMüük[Müügihind]-(JaanuariMüük[Ostuhind]+JaanuariMüük[Veebitasud]+JaanuariMüük[PayPali tasud]+JaanuariMüük[Krediitkaardi tasud]),"") -> 27 | M4: =JaanuariMüük[Saatmistasud]-JaanuariMüük[Saatekulud] -> -1.5 | N4: =JaanuariMüük[Müük: kasum/kahjum]+JaanuariMüük[Saatmine: kasum/kahjum] -> 25.5
C5: RS99 | D5: Üksus 3 | E5: 17 | F5: 23 | G5: 2 | I5: 2 | J5: 3 | K5: 2 | L5: =IFERROR(JaanuariMüük[Müügihind]-(JaanuariMüük[Ostuhind]+JaanuariMüük[Veebitasud]+JaanuariMüük[PayPali tasud]+JaanuariMüük[Krediitkaardi tasud]),"") -> 2 | M5: =JaanuariMüük[Saatmistasud]-JaanuariMüük[Saatekulud] -> 1 | N5: =JaanuariMüük[Müük: kasum/kahjum]+JaanuariMüük[Saatmine: kasum/kahjum] -> 3
A6: Kasum/kahjum kokku | C6: ST001 | D6: Üksus 4 | E6: 120 | F6: 180 | G6: 2 | H6: 1.5 | J6: 3 | K6: 2 | L6: =IFERROR(JaanuariMüük[Müügihind]-(JaanuariMüük[Ostuhind]+JaanuariMüük[Veebitasud]+JaanuariMüük[PayPali tasud]+JaanuariMüük[Krediitkaardi tasud]),"") -> 56.5 | M6: =JaanuariMüük[Saatmistasud]-JaanuariMüük[Saatekulud] -> 1 | N6: =JaanuariMüük[Müük: kasum/kahjum]+JaanuariMüük[Saatmine: kasum/kahjum] -> 57.5
A7: =JaanuariMüük[[#Totals],[Kasum/kahjum kokku]] -> 89 | C7: ST001 | D7: Üksus 5 | E7: 10 | F7: 12 | G7: 2 | H7: 1.5 | J7: 14 | K7: 7 | L7: =IFERROR(JaanuariMüük[Müügihind]-(JaanuariMüük[Ostuhind]+JaanuariMüük[Veebitasud]+JaanuariMüük[PayPali tasud]+JaanuariMüük[Krediitkaardi tasud]),"") -> -1.5 | M7: =JaanuariMüük[Saatmistasud]-JaanuariMüük[Saatekulud] -> 7 | N7: =JaanuariMüük[Müük: kasum/kahjum]+JaanuariMüük[Saatmine: kasum/kahjum] -> 5.5
C8: Kokku | D8: ="Müüdud üksused: "&SUBTOTAL(103,JaanuariMüük[Üksuse kirjeldus]) -> Müüdud üksused: 5 | E8: =SUBTOTAL(109,JaanuariMüük[Ostuhind]) -> 154 | F8: =SUBTOTAL(109,JaanuariMüük[Müügihind]) -> 249 | G8: =SUBTOTAL(109,JaanuariMüük[Veebitasud]) -> 8.5 | H8: =SUBTOTAL(109,JaanuariMüük[PayPali tasud]) -> 5 | I8: =SUBTOTAL(109,JaanuariMüük[Krediitkaardi tasud]) -> 2 | J8: =SUBTOTAL(109,JaanuariMüük[Saatmistasud]) -> 28 | K8: =SUBTOTAL(109,JaanuariMüük[Saatekulud]) -> 18.5 | L8: =SUBTOTAL(109,JaanuariMüük[Müük: kasum/kahjum]) -> 79.5 | M8: =SUBTOTAL(109,JaanuariMüük[Saatmine: kasum/kahjum]) -> 9.5 | N8: =SUBTOTAL(109,JaanuariMüük[Kasum/kahjum kokku]) -> 89

Sheet Veebruari
A1: VEEBRUAR
A2: Veebimüük | C2: Oksjoni ID | D2: Üksuse kirjeldus | E2: Ostuhind | F2: Müügihind | G2: Veebitasud | H2: PayPali tasud | I2: Krediitkaardi tasud | J2: Saatmistasud | K2: Saatekulud | L2: Müük: kasum/kahjum | M2: Saatmine: kasum/kahjum | N2: Kasum/kahjum kokku
A3: Aasta | C3: TS020 | D3: Üksus 1 | E3: 10 | F3: 175 | G3: 3 | H3: 1.5 | I3: 0 | J3: 7 | K3: 5 | L3: =IFERROR(VeebruariMüük[Müügihind]-(VeebruariMüük[Ostuhind]+VeebruariMüük[Veebitasud]+VeebruariMüük[PayPali tasud]+VeebruariMüük[Krediitkaardi tasud]),"") -> 160.5 | M3: =VeebruariMüük[Saatmistasud]-VeebruariMüük[Saatekulud] -> 2 | N3: =VeebruariMüük[Müük: kasum/kahjum]+VeebruariMüük[Saatmine: kasum/kahjum] -> 162.5
A4: =AastaMüük -> 2012 | C4: TS021 | D4: Üksus 2 | E4: 32 | F4: 100 | G4: 3 | I4: 3.2 | J4: 20 | K4: 13 | L4: =IFERROR(VeebruariMüük[Müügihind]-(VeebruariMüük[Ostuhind]+VeebruariMüük[Veebitasud]+VeebruariMüük[PayPali tasud]+VeebruariMüük[Krediitkaardi tasud]),"") -> 61.8 | M4: =VeebruariMüük[Saatmistasud]-VeebruariMüük[Saatekulud] -> 7 | N4: =VeebruariMüük[Müük: kasum/kahjum]+VeebruariMüük[Saatmine: kasum/kahjum] -> 68.8
C5: TS022 | D5: Üksus 3 | E5: 3 | F5: 7 | G5: 2 | I5: 2 | J5: 0.5 | K5: 1.2 | L5: =IFERROR(VeebruariMüük[Müügihind]-(VeebruariMüük[Ostuhind]+VeebruariMüük[Veebitasud]+VeebruariMüük[PayPali tasud]+VeebruariMüük[Krediitkaardi tasud]),"") -> 0 | M5: =VeebruariMüük[Saatmistasud]-VeebruariMüük[Saatekulud] -> -0.7 | N5: =VeebruariMüük[Müük: kasum/kahjum]+VeebruariMüük[Saatmine: kasum/kahjum] -> -0.7
A6: Kasum/kahjum kokku | C6: TS023 | D6: Üksus 4 | E6: 22 | F6: 18 | G6: 3 | H6: 1.5 | J6: 7 | K6: 10 | L6: =IFERROR(VeebruariMüük[Müügihind]-(VeebruariMüük[Ostuhind]+VeebruariMüük[Veebitasud]+VeebruariMüük[PayPali tasud]+VeebruariMüük[Krediitkaardi tasud]),"") -> -8.5 | M6: =VeebruariMüük[Saatmistasud]-VeebruariMüük[Saatekulud] -> -3 | N6: =VeebruariMüük[Müük: kasum/kahjum]+VeebruariMüük[Saatmine: kasum/kahjum] -> -11.5
A7: =VeebruariMüük[[#Totals],[Kasum/kahjum kokku]] -> 224.6 | C7: TS024 | D7: Üksus 5 | E7: 10 | F7: 12 | G7: 2 | H7: 1.5 | J7: 14 | K7: 7 | L7: =IFERROR(VeebruariMüük[Müügihind]-(VeebruariMüük[Ostuhind]+VeebruariMüük[Veebitasud]+VeebruariMüük[PayPali tasud]+VeebruariMüük[Krediitkaardi tasud]),"") -> -1.5 | M7: =VeebruariMüük[Saatmistasud]-VeebruariMüük[Saatekulud] -> 7 | N7: =VeebruariMüük[Müük: kasum/kahjum]+VeebruariMüük[Saatmine: kasum/kahjum] -> 5.5
C8: Kokku | D8: ="Müüdud üksused: "&SUBTOTAL(103,VeebruariMüük[Üksuse kirjeldus]) -> Müüdud üksused: 5 | E8: =SUBTOTAL(109,VeebruariMüük[Ostuhind]) -> 77 | F8: =SUBTOTAL(109,VeebruariMüük[Müügihind]) -> 312 | G8: =SUBTOTAL(109,VeebruariMüük[Veebitasud]) -> 13 | H8: =SUBTOTAL(109,VeebruariMüük[PayPali tasud]) -> 4.5 | I8: =SUBTOTAL(109,VeebruariMüük[Krediitkaardi tasud]) -> 5.2 | J8: =SUBTOTAL(109,VeebruariMüük[Saatmistasud]) -> 48.5 | K8: =SUBTOTAL(109,VeebruariMüük[Saatekulud]) -> 36.2 | L8: =SUBTOTAL(109,VeebruariMüük[Müük: kasum/kahjum]) -> 212.3 | M8: =SUBTOTAL(109,VeebruariMüük[Saatmine: kasum/kahjum]) -> 12.3 | N8: =SUBTOTAL(109,VeebruariMüük[Kasum/kahjum kokku]) -> 224.6

Sheet Märtsi
A1: MÄRTS
A2: Veebimüük | C2: Oksjoni ID | D2: Üksuse kirjeldus | E2: Ostuhind | F2: Müügihind | G2: Veebitasud | H2: PayPali tasud | I2: Krediitkaardi tasud | J2: Saatmistasud | K2: Saatekulud | L2: Müük: kasum/kahjum | M2: Saatmine: kasum/kahjum | N2: Kasum/kahjum kokku
A3: Aasta | L3: =IFERROR(MärtsiMüük[Müügihind]-(MärtsiMüük[Ostuhind]+MärtsiMüük[Veebitasud]+MärtsiMüük[PayPali tasud]+MärtsiMüük[Krediitkaardi tasud]),"") -> 0 | M3: =MärtsiMüük[Saatmistasud]-MärtsiMüük[Saatekulud] -> 0 | N3: =MärtsiMüük[Müük: kasum/kahjum]+MärtsiMüük[Saatmine: kasum/kahjum] -> 0
A4: =AastaMüük -> 2012 | L4: =IFERROR(MärtsiMüük[Müügihind]-(MärtsiMüük[Ostuhind]+MärtsiMüük[Veebitasud]+MärtsiMüük[PayPali tasud]+MärtsiMüük[Krediitkaardi tasud]),"") -> 0 | M4: =MärtsiMüük[Saatmistasud]-MärtsiMüük[Saatekulud] -> 0 | N4: =MärtsiMüük[Müük: kasum/kahjum]+MärtsiMüük[Saatmine: kasum/kahjum] -> 0
L5: =IFERROR(MärtsiMüük[Müügihind]-(MärtsiMüük[Ostuhind]+MärtsiMüük[Veebitasud]+MärtsiMüük[PayPali tasud]+MärtsiMüük[Krediitkaardi tasud]),"") -> 0 | M5: =MärtsiMüük[Saatmistasud]-MärtsiMüük[Saatekulud] -> 0 | N5: =MärtsiMüük[Müük: kasum/kahjum]+MärtsiMüük[Saatmine: kasum/kahjum] -> 0
A6: Kasum/kahjum kokku | L6: =IFERROR(MärtsiMüük[Müügihind]-(MärtsiMüük[Ostuhind]+MärtsiMüük[Veebitasud]+MärtsiMüük[PayPali tasud]+MärtsiMüük[Krediitkaardi tasud]),"") -> 0 | M6: =MärtsiMüük[Saatmistasud]-MärtsiMüük[Saatekulud] -> 0 | N6: =MärtsiMüük[Müük: kasum/kahjum]+MärtsiMüük[Saatmine: kasum/kahjum] -> 0
A7: =MärtsiMüük[[#Totals],[Kasum/kahjum kokku]] -> 0 | L7: =IFERROR(MärtsiMüük[Müügihind]-(MärtsiMüük[Ostuhind]+MärtsiMüük[Veebitasud]+MärtsiMüük[PayPali tasud]+MärtsiMüük[Krediitkaardi tasud]),"") -> 0 | M7: =MärtsiMüük[Saatmistasud]-MärtsiMüük[Saatekulud] -> 0 | N7: =MärtsiMüük[Müük: kasum/kahjum]+MärtsiMüük[Saatmine: kasum/kahjum] -> 0
C8: Kokku | D8: ="Müüdud üksused: "&SUBTOTAL(103,MärtsiMüük[Üksuse kirjeldus]) -> Müüdud üksused: 0 | E8: =SUBTOTAL(109,MärtsiMüük[Ostuhind]) -> 0 | F8: =SUBTOTAL(109,MärtsiMüük[Müügihind]) -> 0 | G8: =SUBTOTAL(109,MärtsiMüük[Veebitasud]) -> 0 | H8: =SUBTOTAL(109,MärtsiMüük[PayPali tasud]) -> 0 | I8: =SUBTOTAL(109,MärtsiMüük[Krediitkaardi tasud]) -> 0 | J8: =SUBTOTAL(109,MärtsiMüük[Saatmistasud]) -> 0 | K8: =SUBTOTAL(109,MärtsiMüük[Saatekulud]) -> 0 | L8: =SUBTOTAL(109,MärtsiMüük[Müük: kasum/kahjum]) -> 0 | M8: =SUBTOTAL(109,MärtsiMüük[Saatmine: kasum/kahjum]) -> 0 | N8: =SUBTOTAL(109,MärtsiMüük[Kasum/kahjum kokku]) -> 0

Sheet Aprilli
A1: APRILL
A2: Veebimüük | C2: Oksjoni ID | D2: Üksuse kirjeldus | E2: Ostuhind | F2: Müügihind | G2: Veebitasud | H2: PayPali tasud | I2: Krediitkaardi tasud | J2: Saatmistasud | K2: Saatekulud | L2: Müük: kasum/kahjum | M2: Saatmine: kasum/kahjum | N2: Kasum/kahjum kokku
A3: Aasta | M3: =AprilliMüük[Saatmistasud]-AprilliMüük[Saatekulud] -> 0 | N3: =AprilliMüük[Müük: kasum/kahjum]+AprilliMüük[Saatmine: kasum/kahjum] -> 0
A4: =AastaMüük -> 2012 | M4: =AprilliMüük[Saatmistasud]-AprilliMüük[Saatekulud] -> 0 | N4: =AprilliMüük[Müük: kasum/kahjum]+AprilliMüük[Saatmine: kasum/kahjum] -> 0
M5: =AprilliMüük[Saatmistasud]-AprilliMüük[Saatekulud] -> 0 | N5: =AprilliMüük[Müük: kasum/kahjum]+AprilliMüük[Saatmine: kasum/kahjum] -> 0
A6: Kasum/kahjum kokku | M6: =AprilliMüük[Saatmistasud]-AprilliMüük[Saatekulud] -> 0 | N6: =AprilliMüük[Müük: kasum/kahjum]+AprilliMüük[Saatmine: kasum/kahjum] -> 0
A7: =AprilliMüük[[#Totals],[Kasum/kahjum kokku]] -> 0 | M7: =AprilliMüük[Saatmistasud]-AprilliMüük[Saatekulud] -> 0 | N7: =AprilliMüük[Müük: kasum/kahjum]+AprilliMüük[Saatmine: kasum/kahjum] -> 0
C8: Kokku | D8: ="Müüdud üksused: "&SUBTOTAL(103,AprilliMüük[Üksuse kirjeldus]) -> Müüdud üksused: 0 | E8: =SUBTOTAL(109,AprilliMüük[Ostuhind]) -> 0 | F8: =SUBTOTAL(109,AprilliMüük[Müügihind]) -> 0 | G8: =SUBTOTAL(109,AprilliMüük[Veebitasud]) -> 0 | H8: =SUBTOTAL(109,AprilliMüük[PayPali tasud]) -> 0 | I8: =SUBTOTAL(109,AprilliMüük[Krediitkaardi tasud]) -> 0 | J8: =SUBTOTAL(109,AprilliMüük[Saatmistasud]) -> 0 | K8: =SUBTOTAL(109,AprilliMüük[Saatekulud]) -> 0 | L8: =SUBTOTAL(109,AprilliMüük[Müük: kasum/kahjum]) -> 0 | M8: =SUBTOTAL(109,AprilliMüük[Saatmine: kasum/kahjum]) -> 0 | N8: =SUBTOTAL(109,AprilliMüük[Kasum/kahjum kokku]) -> 0

Sheet Mai
A1: MAI
A2: Veebimüük | C2: Oksjoni ID | D2: Üksuse kirjeldus | E2: Ostuhind | F2: Müügihind | G2: Veebitasud | H2: PayPali tasud | I2: Krediitkaardi tasud | J2: Saatmistasud | K2: Saatekulud | L2: Müük: kasum/kahjum | M2: Saatmine: kasum/kahjum | N2: Kasum/kahjum kokku
A3: Aasta | M3: =MaySales[Saatmistasud]-MaySales[Saatekulud] -> 0 | N3: =MaySales[Müük: kasum/kahjum]+MaySales[Saatmine: kasum/kahjum] -> 0
A4: =AastaMüük -> 2012 | M4: =MaySales[Saatmistasud]-MaySales[Saatekulud] -> 0 | N4: =MaySales[Müük: kasum/kahjum]+MaySales[Saatmine: kasum/kahjum] -> 0
M5: =MaySales[Saatmistasud]-MaySales[Saatekulud] -> 0 | N5: =MaySales[Müük: kasum/kahjum]+MaySales[Saatmine: kasum/kahjum] -> 0
A6: Kasum/kahjum kokku | M6: =MaySales[Saatmistasud]-MaySales[Saatekulud] -> 0 | N6: =MaySales[Müük: kasum/kahjum]+MaySales[Saatmine: kasum/kahjum] -> 0
A7: =MaySales[[#Totals],[Kasum/kahjum kokku]] -> 0 | M7: =MaySales[Saatmistasud]-MaySales[Saatekulud] -> 0 | N7: =MaySales[Müük: kasum/kahjum]+MaySales[Saatmine: kasum/kahjum] -> 0
C8: Kokku | D8: ="Müüdud üksused: "&SUBTOTAL(103,MaySales[Üksuse kirjeldus]) -> Müüdud üksused: 0 | E8: =SUBTOTAL(109,MaySales[Ostuhind]) -> 0 | F8: =SUBTOTAL(109,MaySales[Müügihind]) -> 0 | G8: =SUBTOTAL(109,MaySales[Veebitasud]) -> 0 | H8: =SUBTOTAL(109,MaySales[PayPali tasud]) -> 0 | I8: =SUBTOTAL(109,MaySales[Krediitkaardi tasud]) -> 0 | J8: =SUBTOTAL(109,MaySales[Saatmistasud]) -> 0 | K8: =SUBTOTAL(109,MaySales[Saatekulud]) -> 0 | L8: =SUBTOTAL(109,MaySales[Müük: kasum/kahjum]) -> 0 | M8: =SUBTOTAL(109,MaySales[Saatmine: kasum/kahjum]) -> 0 | N8: =SUBTOTAL(109,MaySales[Kasum/kahjum kokku]) -> 0

Sheet Juuni
A1: JUUNI
A2: Veebimüük | C2: Oksjoni ID | D2: Üksuse kirjeldus | E2: Ostuhind | F2: Müügihind | G2: Veebitasud | H2: PayPali tasud | I2: Krediitkaardi tasud | J2: Saatmistasud | K2: Saatekulud | L2: Müük: kasum/kahjum | M2: Saatmine: kasum/kahjum | N2: Kasum/kahjum kokku
A3: Aasta | M3: =JuneSales[Saatmistasud]-JuneSales[Saatekulud] -> 0 | N3: =JuneSales[Müük: kasum/kahjum]+JuneSales[Saatmine: kasum/kahjum] -> 0
A4: =AastaMüük -> 2012 | M4: =JuneSales[Saatmistasud]-JuneSales[Saatekulud] -> 0 | N4: =JuneSales[Müük: kasum/kahjum]+JuneSales[Saatmine: kasum/kahjum] -> 0
M5: =JuneSales[Saatmistasud]-JuneSales[Saatekulud] -> 0 | N5: =JuneSales[Müük: kasum/kahjum]+JuneSales[Saatmine: kasum/kahjum] -> 0
A6: Kasum/kahjum kokku | M6: =JuneSales[Saatmistasud]-JuneSales[Saatekulud] -> 0 | N6: =JuneSales[Müük: kasum/kahjum]+JuneSales[Saatmine: kasum/kahjum] -> 0
A7: =JuneSales[[#Totals],[Kasum/kahjum kokku]] -> 0 | M7: =JuneSales[Saatmistasud]-JuneSales[Saatekulud] -> 0 | N7: =JuneSales[Müük: kasum/kahjum]+JuneSales[Saatmine: kasum/kahjum] -> 0
C8: Kokku | D8: ="Müüdud üksused: "&SUBTOTAL(103,JuneSales[Üksuse kirjeldus]) -> Müüdud üksused: 0 | E8: =SUBTOTAL(109,JuneSales[Ostuhind]) -> 0 | F8: =SUBTOTAL(109,JuneSales[Müügihind]) -> 0 | G8: =SUBTOTAL(109,JuneSales[Veebitasud]) -> 0 | H8: =SUBTOTAL(109,JuneSales[PayPali tasud]) -> 0 | I8: =SUBTOTAL(109,JuneSales[Krediitkaardi tasud]) -> 0 | J8: =SUBTOTAL(109,JuneSales[Saatmistasud]) -> 0 | K8: =SUBTOTAL(109,JuneSales[Saatekulud]) -> 0 | L8: =SUBTOTAL(109,JuneSales[Müük: kasum/kahjum]) -> 0 | M8: =SUBTOTAL(109,JuneSales[Saatmine: kasum/kahjum]) -> 0 | N8: =SUBTOTAL(109,JuneSales[Kasum/kahjum kokku]) -> 0

Sheet Juuli
A1: JUULI
A2: Veebimüük | C2: Oksjoni ID | D2: Üksuse kirjeldus | E2: Ostuhind | F2: Müügihind | G2: Veebitasud | H2: PayPali tasud | I2: Krediitkaardi tasud | J2: Saatmistasud | K2: Saatekulud | L2: Müük: kasum/kahjum | M2: Saatmine: kasum/kahjum | N2: Kasum/kahjum kokku
A3: Aasta | M3: =JuuliMüük[Saatmistasud]-JuuliMüük[Saatekulud] -> 0 | N3: =JuuliMüük[Müük: kasum/kahjum]+JuuliMüük[Saatmine: kasum/kahjum] -> 0
A4: =AastaMüük -> 2012 | M4: =JuuliMüük[Saatmistasud]-JuuliMüük[Saatekulud] -> 0 | N4: =JuuliMüük[Müük: kasum/kahjum]+JuuliMüük[Saatmine: kasum/kahjum] -> 0
M5: =JuuliMüük[Saatmistasud]-JuuliMüük[Saatekulud] -> 0 | N5: =JuuliMüük[Müük: kasum/kahjum]+JuuliMüük[Saatmine: kasum/kahjum] -> 0
A6: Kasum/kahjum kokku | M6: =JuuliMüük[Saatmistasud]-JuuliMüük[Saatekulud] -> 0 | N6: =JuuliMüük[Müük: kasum/kahjum]+JuuliMüük[Saatmine: kasum/kahjum] -> 0
A7: =JuuliMüük[[#Totals],[Kasum/kahjum kokku]] -> 0 | M7: =JuuliMüük[Saatmistasud]-JuuliMüük[Saatekulud] -> 0 | N7: =JuuliMüük[Müük: kasum/kahjum]+JuuliMüük[Saatmine: kasum/kahjum] -> 0
C8: Kokku | D8: ="Müüdud üksused: "&SUBTOTAL(103,JuuliMüük[Üksuse kirjeldus]) -> Müüdud üksused: 0 | E8: =SUBTOTAL(109,JuuliMüük[Ostuhind]) -> 0 | F8: =SUBTOTAL(109,JuuliMüük[Müügihind]) -> 0 | G8: =SUBTOTAL(109,JuuliMüük[Veebitasud]) -> 0 | H8: =SUBTOTAL(109,JuuliMüük[PayPali tasud]) -> 0 | I8: =SUBTOTAL(109,JuuliMüük[Krediitkaardi tasud]) -> 0 | J8: =SUBTOTAL(109,JuuliMüük[Saatmistasud]) -> 0 | K8: =SUBTOTAL(109,JuuliMüük[Saatekulud]) -> 0 | L8: =SUBTOTAL(109,JuuliMüük[Müük: kasum/kahjum]) -> 0 | M8: =SUBTOTAL(109,JuuliMüük[Saatmine: kasum/kahjum]) -> 0 | N8: =SUBTOTAL(109,JuuliMüük[Kasum/kahjum kokku]) -> 0

Sheet Augusti
A1: AUGUST
A2: Veebimüük | C2: Oksjoni ID | D2: Üksuse kirjeldus | E2: Ostuhind | F2: Müügihind | G2: Veebitasud | H2: PayPali tasud | I2: Krediitkaardi tasud | J2: Saatmistasud | K2: Saatekulud | L2: Müük: kasum/kahjum | M2: Saatmine: kasum/kahjum | N2: Kasum/kahjum kokku
A3: Aasta | M3: =AugustiMüük[Saatmistasud]-AugustiMüük[Saatekulud] -> 0 | N3: =AugustiMüük[Müük: kasum/kahjum]+AugustiMüük[Saatmine: kasum/kahjum] -> 0
A4: =AastaMüük -> 2012 | M4: =AugustiMüük[Saatmistasud]-AugustiMüük[Saatekulud] -> 0 | N4: =AugustiMüük[Müük: kasum/kahjum]+AugustiMüük[Saatmine: kasum/kahjum] -> 0
M5: =AugustiMüük[Saatmistasud]-AugustiMüük[Saatekulud] -> 0 | N5: =AugustiMüük[Müük: kasum/kahjum]+AugustiMüük[Saatmine: kasum/kahjum] -> 0
A6: Kasum/kahjum kokku | M6: =AugustiMüük[Saatmistasud]-AugustiMüük[Saatekulud] -> 0 | N6: =AugustiMüük[Müük: kasum/kahjum]+AugustiMüük[Saatmine: kasum/kahjum] -> 0
A7: =AugustiMüük[[#Totals],[Kasum/kahjum kokku]] -> 0 | M7: =AugustiMüük[Saatmistasud]-AugustiMüük[Saatekulud] -> 0 | N7: =AugustiMüük[Müük: kasum/kahjum]+AugustiMüük[Saatmine: kasum/kahjum] -> 0
C8: Kokku | D8: ="Müüdud üksused: "&SUBTOTAL(103,AugustiMüük[Üksuse kirjeldus]) -> Müüdud üksused: 0 | E8: =SUBTOTAL(109,AugustiMüük[Ostuhind]) -> 0 | F8: =SUBTOTAL(109,AugustiMüük[Müügihind]) -> 0 | G8: =SUBTOTAL(109,AugustiMüük[Veebitasud]) -> 0 | H8: =SUBTOTAL(109,AugustiMüük[PayPali tasud]) -> 0 | I8: =SUBTOTAL(109,AugustiMüük[Krediitkaardi tasud]) -> 0 | J8: =SUBTOTAL(109,AugustiMüük[Saatmistasud]) -> 0 | K8: =SUBTOTAL(109,AugustiMüük[Saatekulud]) -> 0 | L8: =SUBTOTAL(109,AugustiMüük[Müük: kasum/kahjum]) -> 0 | M8: =SUBTOTAL(109,AugustiMüük[Saatmine: kasum/kahjum]) -> 0 | N8: =SUBTOTAL(109,AugustiMüük[Kasum/kahjum kokku]) -> 0

Sheet Septembri
A1: SEPTEMBER
A2: Veebimüük | C2: Oksjoni ID | D2: Üksuse kirjeldus | E2: Ostuhind | F2: Müügihind | G2: Veebitasud | H2: PayPali tasud | I2: Krediitkaardi tasud | J2: Saatmistasud | K2: Saatekulud | L2: Müük: kasum/kahjum | M2: Saatmine: kasum/kahjum | N2: Kasum/kahjum kokku
A3: Aasta | M3: =SeptembriMüük[Saatmistasud]-SeptembriMüük[Saatekulud] -> 0 | N3: =SeptembriMüük[Müük: kasum/kahjum]+SeptembriMüük[Saatmine: kasum/kahjum] -> 0
A4: =AastaMüük -> 2012 | M4: =SeptembriMüük[Saatmistasud]-SeptembriMüük[Saatekulud] -> 0 | N4: =SeptembriMüük[Müük: kasum/kahjum]+SeptembriMüük[Saatmine: kasum/kahjum] -> 0
M5: =SeptembriMüük[Saatmistasud]-SeptembriMüük[Saatekulud] -> 0 | N5: =SeptembriMüük[Müük: kasum/kahjum]+SeptembriMüük[Saatmine: kasum/kahjum] -> 0
A6: Kasum/kahjum kokku | M6: =SeptembriMüük[Saatmistasud]-SeptembriMüük[Saatekulud] -> 0 | N6: =SeptembriMüük[Müük: kasum/kahjum]+SeptembriMüük[Saatmine: kasum/kahjum] -> 0
A7: =SeptembriMüük[[#Totals],[Kasum/kahjum kokku]] -> 0 | M7: =SeptembriMüük[Saatmistasud]-SeptembriMüük[Saatekulud] -> 0 | N7: =SeptembriMüük[Müük: kasum/kahjum]+SeptembriMüük[Saatmine: kasum/kahjum] -> 0
C8: Kokku | D8: ="Müüdud üksused: "&SUBTOTAL(103,SeptembriMüük[Üksuse kirjeldus]) -> Müüdud üksused: 0 | E8: =SUBTOTAL(109,SeptembriMüük[Ostuhind]) -> 0 | F8: =SUBTOTAL(109,SeptembriMüük[Müügihind]) -> 0 | G8: =SUBTOTAL(109,SeptembriMüük[Veebitasud]) -> 0 | H8: =SUBTOTAL(109,SeptembriMüük[PayPali tasud]) -> 0 | I8: =SUBTOTAL(109,SeptembriMüük[Krediitkaardi tasud]) -> 0 | J8: =SUBTOTAL(109,SeptembriMüük[Saatmistasud]) -> 0 | K8: =SUBTOTAL(109,SeptembriMüük[Saatekulud]) -> 0 | L8: =SUBTOTAL(109,SeptembriMüük[Müük: kasum/kahjum]) -> 0 | M8: =SUBTOTAL(109,SeptembriMüük[Saatmine: kasum/kahjum]) -> 0 | N8: =SUBTOTAL(109,SeptembriMüük[Kasum/kahjum kokku]) -> 0

Sheet Oktoobri
A1: OKTOOBER
A2: Veebimüük | C2: Oksjoni ID | D2: Üksuse kirjeldus | E2: Ostuhind | F2: Müügihind | G2: Veebitasud | H2: PayPali tasud | I2: Krediitkaardi tasud | J2: Saatmistasud | K2: Saatekulud | L2: Müük: kasum/kahjum | M2: Saatmine: kasum/kahjum | N2: Kasum/kahjum kokku
A3: Aasta | M3: =OktoobriMüük[Saatmistasud]-OktoobriMüük[Saatekulud] -> 0 | N3: =OktoobriMüük[Müük: kasum/kahjum]+OktoobriMüük[Saatmine: kasum/kahjum] -> 0
A4: =AastaMüük -> 2012 | M4: =OktoobriMüük[Saatmistasud]-OktoobriMüük[Saatekulud] -> 0 | N4: =OktoobriMüük[Müük: kasum/kahjum]+OktoobriMüük[Saatmine: kasum/kahjum] -> 0
M5: =OktoobriMüük[Saatmistasud]-OktoobriMüük[Saatekulud] -> 0 | N5: =OktoobriMüük[Müük: kasum/kahjum]+OktoobriMüük[Saatmine: kasum/kahjum] -> 0
A6: Kasum/kahjum kokku | M6: =OktoobriMüük[Saatmistasud]-OktoobriMüük[Saatekulud] -> 0 | N6: =OktoobriMüük[Müük: kasum/kahjum]+OktoobriMüük[Saatmine: kasum/kahjum] -> 0
A7: =OktoobriMüük[[#Totals],[Kasum/kahjum kokku]] -> 0 | M7: =OktoobriMüük[Saatmistasud]-OktoobriMüük[Saatekulud] -> 0 | N7: =OktoobriMüük[Müük: kasum/kahjum]+OktoobriMüük[Saatmine: kasum/kahjum] -> 0
C8: Kokku | D8: ="Müüdud üksused: "&SUBTOTAL(103,OktoobriMüük[Üksuse kirjeldus]) -> Müüdud üksused: 0 | E8: =SUBTOTAL(109,OktoobriMüük[Ostuhind]) -> 0 | F8: =SUBTOTAL(109,OktoobriMüük[Müügihind]) -> 0 | G8: =SUBTOTAL(109,OktoobriMüük[Veebitasud]) -> 0 | H8: =SUBTOTAL(109,OktoobriMüük[PayPali tasud]) -> 0 | I8: =SUBTOTAL(109,OktoobriMüük[Krediitkaardi tasud]) -> 0 | J8: =SUBTOTAL(109,OktoobriMüük[Saatmistasud]) -> 0 | K8: =SUBTOTAL(109,OktoobriMüük[Saatekulud]) -> 0 | L8: =SUBTOTAL(109,OktoobriMüük[Müük: kasum/kahjum]) -> 0 | M8: =SUBTOTAL(109,OktoobriMüük[Saatmine: kasum/kahjum]) -> 0 | N8: =SUBTOTAL(109,OktoobriMüük[Kasum/kahjum kokku]) -> 0

Sheet Novembri
A1: NOVEMBER
A2: Veebimüük | C2: Oksjoni ID | D2: Üksuse kirjeldus | E2: Ostuhind | F2: Müügihind | G2: Veebitasud | H2: PayPali tasud | I2: Krediitkaardi tasud | J2: Saatmistasud | K2: Saatekulud | L2: Müük: kasum/kahjum | M2: Saatmine: kasum/kahjum | N2: Kasum/kahjum kokku
A3: Aasta | M3: =NovembriMüük[Saatmistasud]-NovembriMüük[Saatekulud] -> 0 | N3: =NovembriMüük[Müük: kasum/kahjum]+NovembriMüük[Saatmine: kasum/kahjum] -> 0
A4: =AastaMüük -> 2012 | M4: =NovembriMüük[Saatmistasud]-NovembriMüük[Saatekulud] -> 0 | N4: =NovembriMüük[Müük: kasum/kahjum]+NovembriMüük[Saatmine: kasum/kahjum] -> 0
M5: =NovembriMüük[Saatmistasud]-NovembriMüük[Saatekulud] -> 0 | N5: =NovembriMüük[Müük: kasum/kahjum]+NovembriMüük[Saatmine: kasum/kahjum] -> 0
A6: Kasum/kahjum kokku | M6: =NovembriMüük[Saatmistasud]-NovembriMüük[Saatekulud] -> 0 | N6: =NovembriMüük[Müük: kasum/kahjum]+NovembriMüük[Saatmine: kasum/kahjum] -> 0
A7: =NovembriMüük[[#Totals],[Kasum/kahjum kokku]] -> 0 | M7: =NovembriMüük[Saatmistasud]-NovembriMüük[Saatekulud] -> 0 | N7: =NovembriMüük[Müük: kasum/kahjum]+NovembriMüük[Saatmine: kasum/kahjum] -> 0
C8: Kokku | D8: ="Müüdud üksused: "&SUBTOTAL(103,NovembriMüük[Üksuse kirjeldus]) -> Müüdud üksused: 0 | E8: =SUBTOTAL(109,NovembriMüük[Ostuhind]) -> 0 | F8: =SUBTOTAL(109,NovembriMüük[Müügihind]) -> 0 | G8: =SUBTOTAL(109,NovembriMüük[Veebitasud]) -> 0 | H8: =SUBTOTAL(109,NovembriMüük[PayPali tasud]) -> 0 | I8: =SUBTOTAL(109,NovembriMüük[Krediitkaardi tasud]) -> 0 | J8: =SUBTOTAL(109,NovembriMüük[Saatmistasud]) -> 0 | K8: =SUBTOTAL(109,NovembriMüük[Saatekulud]) -> 0 | L8: =SUBTOTAL(109,NovembriMüük[Müük: kasum/kahjum]) -> 0 | M8: =SUBTOTAL(109,NovembriMüük[Saatmine: kasum/kahjum]) -> 0 | N8: =SUBTOTAL(109,NovembriMüük[Kasum/kahjum kokku]) -> 0

Sheet Detsembri
A1: DETSEMBR
A2: Veebimüük | C2: Oksjoni ID | D2: Üksuse kirjeldus | E2: Ostuhind | F2: Müügihind | G2: Veebitasud | H2: PayPali tasud | I2: Krediitkaardi tasud | J2: Saatmistasud | K2: Saatekulud | L2: Müük: kasum/kahjum | M2: Saatmine: kasum/kahjum | N2: Kasum/kahjum kokku
A3: Aasta | M3: =DetsembriMüük[Saatmistasud]-DetsembriMüük[Saatekulud] -> 0 | N3: =DetsembriMüük[Müük: kasum/kahjum]+DetsembriMüük[Saatmine: kasum/kahjum] -> 0
A4: =AastaMüük -> 2012 | M4: =DetsembriMüük[Saatmistasud]-DetsembriMüük[Saatekulud] -> 0 | N4: =DetsembriMüük[Müük: kasum/kahjum]+DetsembriMüük[Saatmine: kasum/kahjum] -> 0
M5: =DetsembriMüük[Saatmistasud]-DetsembriMüük[Saatekulud] -> 0 | N5: =DetsembriMüük[Müük: kasum/kahjum]+DetsembriMüük[Saatmine: kasum/kahjum] -> 0
A6: Kasum/kahjum kokku | M6: =DetsembriMüük[Saatmistasud]-DetsembriMüük[Saatekulud] -> 0 | N6: =DetsembriMüük[Müük: kasum/kahjum]+DetsembriMüük[Saatmine: kasum/kahjum] -> 0
A7: =DetsembriMüük[[#Totals],[Kasum/kahjum kokku]] -> 0 | M7: =DetsembriMüük[Saatmistasud]-DetsembriMüük[Saatekulud] -> 0 | N7: =DetsembriMüük[Müük: kasum/kahjum]+DetsembriMüük[Saatmine: kasum/kahjum] -> 0
C8: Kokku | D8: ="Müüdud üksused: "&SUBTOTAL(103,DetsembriMüük[Üksuse kirjeldus]) -> Müüdud üksused: 0 | E8: =SUBTOTAL(109,DetsembriMüük[Ostuhind]) -> 0 | F8: =SUBTOTAL(109,DetsembriMüük[Müügihind]) -> 0 | G8: =SUBTOTAL(109,DetsembriMüük[Veebitasud]) -> 0 | H8: =SUBTOTAL(109,DetsembriMüük[PayPali tasud]) -> 0 | I8: =SUBTOTAL(109,DetsembriMüük[Krediitkaardi tasud]) -> 0 | J8: =SUBTOTAL(109,DetsembriMüük[Saatmistasud]) -> 0 | K8: =SUBTOTAL(109,DetsembriMüük[Saatekulud]) -> 0 | L8: =SUBTOTAL(109,DetsembriMüük[Müük: kasum/kahjum]) -> 0 | M8: =SUBTOTAL(109,DetsembriMüük[Saatmine: kasum/kahjum]) -> 0 | N8: =SUBTOTAL(109,DetsembriMüük[Kasum/kahjum kokku]) -> 0

Sheet Kokkuvõte aasta alg. tänaseni
A1: YTD
A2: Kokkuvõte | C2: Kasum/kahjum | H2: Kasum/kahjum aasta algusest tänaseni
A3: Aasta | H3: Kuu | I3: Müük: kasum/kahjum | J3: Saatmine: kasum/kahjum | K3: Kasum/kahjum kokku
A4: =AastaMüük -> 2012 | H4: Jaanuar | I4: =JaanuariMüük[[#Totals],[Müük: kasum/kahjum]] -> 79.5 | J4: =JaanuariMüük[[#Totals],[Saatmine: kasum/kahjum]] -> 9.5 | K4: =IF(AND(YTDkokkuvõte[[#This Row],[Müük: kasum/kahjum]]<>"",YTDkokkuvõte[[#This Row],[Saatmine: kasum/kahjum]]<>""),YTDkokkuvõte[[#This Row],[Müük: kasum/kahjum]]+YTDkokkuvõte[[#This Row],[Saatmine: kasum/kahjum]],"") -> 89
H5: Veebruar | I5: =VeebruariMüük[[#Totals],[Müük: kasum/kahjum]] -> 212.3 | J5: =VeebruariMüük[[#Totals],[Saatmine: kasum/kahjum]] -> 12.3 | K5: =IF(AND(YTDkokkuvõte[[#This Row],[Müük: kasum/kahjum]]<>"",YTDkokkuvõte[[#This Row],[Saatmine: kasum/kahjum]]<>""),YTDkokkuvõte[[#This Row],[Müük: kasum/kahjum]]+YTDkokkuvõte[[#This Row],[Saatmine: kasum/kahjum]],"") -> 224.6
A6: Kuu müügitrend: | H6: Märts | I6: =MärtsiMüük[[#Totals],[Müük: kasum/kahjum]] -> 0 | J6: =MärtsiMüük[[#Totals],[Saatmine: kasum/kahjum]] -> 0 | K6: =IF(AND(YTDkokkuvõte[[#This Row],[Müük: kasum/kahjum]]<>"",YTDkokkuvõte[[#This Row],[Saatmine: kasum/kahjum]]<>""),YTDkokkuvõte[[#This Row],[Müük: kasum/kahjum]]+YTDkokkuvõte[[#This Row],[Saatmine: kasum/kahjum]],"") -> 0
H7: Aprill | I7: =AprilliMüük[[#Totals],[Müük: kasum/kahjum]] -> 0 | J7: =AprilliMüük[[#Totals],[Saatmine: kasum/kahjum]] -> 0 | K7: =IF(AND(YTDkokkuvõte[[#This Row],[Müük: kasum/kahjum]]<>"",YTDkokkuvõte[[#This Row],[Saatmine: kasum/kahjum]]<>""),YTDkokkuvõte[[#This Row],[Müük: kasum/kahjum]]+YTDkokkuvõte[[#This Row],[Saatmine: kasum/kahjum]],"") -> 0
H8: Mai | I8: =MaySales[[#Totals],[Müük: kasum/kahjum]] -> 0 | J8: =MaySales[[#Totals],[Saatmine: kasum/kahjum]] -> 0 | K8: =IF(AND(YTDkokkuvõte[[#This Row],[Müük: kasum/kahjum]]<>"",YTDkokkuvõte[[#This Row],[Saatmine: kasum/kahjum]]<>""),YTDkokkuvõte[[#This Row],[Müük: kasum/kahjum]]+YTDkokkuvõte[[#This Row],[Saatmine: kasum/kahjum]],"") -> 0
H9: Juuni | I9: =JuneSales[[#Totals],[Müük: kasum/kahjum]] -> 0 | J9: =JuneSales[[#Totals],[Saatmine: kasum/kahjum]] -> 0 | K9: =IF(AND(YTDkokkuvõte[[#This Row],[Müük: kasum/kahjum]]<>"",YTDkokkuvõte[[#This Row],[Saatmine: kasum/kahjum]]<>""),YTDkokkuvõte[[#This Row],[Müük: kasum/kahjum]]+YTDkokkuvõte[[#This Row],[Saatmine: kasum/kahjum]],"") -> 0
H10: Juuli | I10: =JuuliMüük[[#Totals],[Müük: kasum/kahjum]] -> 0 | J10: =JuuliMüük[[#Totals],[Saatmine: kasum/kahjum]] -> 0 | K10: =IF(AND(YTDkokkuvõte[[#This Row],[Müük: kasum/kahjum]]<>"",YTDkokkuvõte[[#This Row],[Saatmine: kasum/kahjum]]<>""),YTDkokkuvõte[[#This Row],[Müük: kasum/kahjum]]+YTDkokkuvõte[[#This Row],[Saatmine: kasum/kahjum]],"") -> 0
H11: August | I11: =AugustiMüük[[#Totals],[Müük: kasum/kahjum]] -> 0 | J11: =AugustiMüük[[#Totals],[Saatmine: kasum/kahjum]] -> 0 | K11: =IF(AND(YTDkokkuvõte[[#This Row],[Müük: kasum/kahjum]]<>"",YTDkokkuvõte[[#This Row],[Saatmine: kasum/kahjum]]<>""),YTDkokkuvõte[[#This Row],[Müük: kasum/kahjum]]+YTDkokkuvõte[[#This Row],[Saatmine: kasum/kahjum]],"") -> 0
H12: September | I12: =SeptembriMüük[[#Totals],[Müük: kasum/kahjum]] -> 0 | J12: =SeptembriMüük[[#Totals],[Saatmine: kasum/kahjum]] -> 0 | K12: =IF(AND(YTDkokkuvõte[[#This Row],[Müük: kasum/kahjum]]<>"",YTDkokkuvõte[[#This Row],[Saatmine: kasum/kahjum]]<>""),YTDkokkuvõte[[#This Row],[Müük: kasum/kahjum]]+YTDkokkuvõte[[#This Row],[Saatmine: kasum/kahjum]],"") -> 0
H13: Oktoober | I13: =OktoobriMüük[[#Totals],[Müük: kasum/kahjum]] -> 0 | J13: =OktoobriMüük[[#Totals],[Saatmine: kasum/kahjum]] -> 0 | K13: =IF(AND(YTDkokkuvõte[[#This Row],[Müük: kasum/kahjum]]<>"",YTDkokkuvõte[[#This Row],[Saatmine: kasum/kahjum]]<>""),YTDkokkuvõte[[#This Row],[Müük: kasum/kahjum]]+YTDkokkuvõte[[#This Row],[Saatmine: kasum/kahjum]],"") -> 0
H14: November | I14: =NovembriMüük[[#Totals],[Müük: kasum/kahjum]] -> 0 | J14: =NovembriMüük[[#Totals],[Saatmine: kasum/kahjum]] -> 0 | K14: =IF(AND(YTDkokkuvõte[[#This Row],[Müük: kasum/kahjum]]<>"",YTDkokkuvõte[[#This Row],[Saatmine: kasum/kahjum]]<>""),YTDkokkuvõte[[#This Row],[Müük: kasum/kahjum]]+YTDkokkuvõte[[#This Row],[Saatmine: kasum/kahjum]],"") -> 0
H15: Detsember | I15: =DetsembriMüük[[#Totals],[Müük: kasum/kahjum]] -> 0 | J15: =DetsembriMüük[[#Totals],[Saatmine: kasum/kahjum]] -> 0 | K15: =IF(AND(YTDkokkuvõte[[#This Row],[Müük: kasum/kahjum]]<>"",YTDkokkuvõte[[#This Row],[Saatmine: kasum/kahjum]]<>""),YTDkokkuvõte[[#This Row],[Müük: kasum/kahjum]]+YTDkokkuvõte[[#This Row],[Saatmine: kasum/kahjum]],"") -> 0
H16: Summad | I16: =SUBTOTAL(109,YTDkokkuvõte[Müük: kasum/kahjum]) -> 291.8 | J16: =SUBTOTAL(109,YTDkokkuvõte[Saatmine: kasum/kahjum]) -> 21.8 | K16: =SUBTOTAL(109,YTDkokkuvõte[Kasum/kahjum kokku]) -> 313.6
